bitfinex-derivatives/quotes_BTCF0:USTF0_20251219
["timestamp","ask_amount","ask_price","bid_price","bid_amount"]
[1766157532204,0.0112056,89281.0,89247.0,0.0112098]
[1766157532511,0.0112049,89287.0,89253.0,0.011209]
[1766157532817,0.00488,89287.0,89261.0,0.000168]
[1766157533014,0.0112051,89286.0,89261.0,0.000168]
[1766157533319,0.00488,89287.0,89261.0,0.000168]
[1766157533619,0.00488,89287.0,89262.0,0.0112079]
[1766157533807,0.000168,89283.0,89261.0,0.000168]
[1766157534110,0.00488,89287.0,89262.0,0.0112079]
[1766157534502,0.00488,89287.0,89266.0,0.0112073]
[1766157535013,0.000168,89285.0,89261.0,0.011376]
[1766157535212,0.0112056,89281.0,89262.0,0.0175203]
[1766157535408,0.0112056,89281.0,89261.0,0.000168]
[1766157535917,0.0112063,89276.0,89261.0,1e-07]
[1766157536114,0.000168,89285.0,89261.0,1e-07]
[1766157536909,0.0112058,89279.0,89261.0,1e-07]
[1766157537318,0.0112064,89275.0,89261.0,1e-07]
[1766157537718,0.000168,89285.0,89261.0,1e-07]
[1766157538121,0.0112067,89273.0,89261.0,1e-07]
[1766157538319,0.0112068,89271.0,89261.0,1e-07]
[1766157538521,0.00216,89272.0,89261.0,1e-07]
[1766157538710,0.0112085,89258.0,89239.0,8.451e-05]
[1766157538916,0.00596,89258.0,89240.0,0.01752344]
[1766157539117,0.0112086,89257.0,89241.0,0.01752344]
[1766157539423,0.0112094,89251.0,89239.0,4.51e-06]
[1766157539622,0.00596,89258.0,89229.0,0.011212]
[1766157539917,0.00016809,89252.0,89235.0,0.00016809]
[1766157540625,0.0112102,89245.0,89219.0,0.0112134]
[1766157540923,0.0171703,89244.0,89220.0,0.01752854]
[1766157541119,0.00596,89244.0,89221.0,0.01752854]
[1766157541321,0.82958648,89231.0,89178.0,2.72e-06]
[1766157541510,0.0112119,89232.0,89174.0,0.0112189]
[1766157541712,0.00016809,89213.0,89158.0,0.0024]
[1766157541916,1.46201957,89231.0,89158.0,0.0024]
[1766157541917,0.02649957,89212.0,89190.0,0.011217]
[1766157542114,0.00596,89227.0,89201.0,0.0112155]
[1766157542316,0.0112078,89264.0,89177.0,0.0112186]
[1766157542317,0.011211,89238.0,89207.0,0.0112148]
[1766157542521,0.02649978,89237.0,89196.0,1.42964]
[1766157542719,0.0112105,89242.0,89208.0,0.00016809]
[1766157542720,0.00484,89242.0,89208.0,0.00016809]
[1766157542921,0.02631809,89241.0,89208.0,0.00016809]
[1766157543123,0.00484,89242.0,89208.0,0.00016809]
[1766157543124,0.02631809,89240.0,89208.0,0.00016809]
[1766157543323,1.45612688,89239.0,89208.0,0.00016809]
[1766157543528,0.0112135,89219.0,89208.0,0.00016809]
[1766157543713,1.42980879,89239.0,89164.0,1.42976]
[1766157543714,0.0112137,89217.0,89164.0,1.42976]
[1766157544022,0.0112176,89186.0,89142.0,0.011223]
[1766157544330,0.0112178,89184.0,89142.0,0.011223]
[1766157544518,0.00596,89185.0,89147.0,0.0112223]
[1766157544820,0.0001682,89175.0,89157.0,0.0001682]
[1766157545022,0.00604635,89174.0,89133.0,0.0112241]
[1766157545215,0.0112211,89158.0,89117.0,0.05]
[1766157545422,1.4610007,89157.0,89077.0,1.42992]
[1766157545623,1.46093618,89156.0,89077.0,1.42992]
[1766157545922,0.0001683,89136.0,89077.0,0.0112312]
[1766157546121,1.46213618,89135.0,89077.0,0.0112312]
[1766157546316,0.02617618,89134.0,89070.0,0.0112321]
[1766157546830,0.0561221,89132.0,89059.0,0.0112335]
[1766157547129,0.0112304,89084.0,89039.0,9.227e-05]
[1766157547319,0.0112253,89125.0,89046.0,0.0561755]
[1766157547516,1.4622892,89124.0,89060.0,0.12334689]
[1766157547811,1.43628,89123.0,89065.0,0.0112327]
[1766157548017,1.43649026,89122.0,89060.0,0.006]
[1766157548216,0.14606167,89161.0,89061.0,0.0561665]
[1766157548517,0.14606167,89161.0,89099.0,0.00016842]
[1766157548518,0.00016842,89117.0,89099.0,0.00016842]
[1766157548712,0.006,89117.0,89099.0,0.0001683]
[1766157548914,0.0061683,89117.0,89099.0,0.0001683]
[1766157549317,0.0001683,89117.0,89087.0,0.0112299]
[1766157549517,0.00610776,89116.0,89078.0,0.011231]
[1766157549720,0.0172265,89115.0,89062.0,0.011233]
[1766157549930,0.006,89115.0,89005.0,0.0112402]
[1766157550232,0.0112315,89075.0,89023.0,0.011238]
[1766157550419,0.00016843,89066.0,89018.0,0.01348535]
[1766157550732,1.43072,89065.0,89018.0,0.00224675]
[1766157550919,0.00016843,89066.0,89037.0,0.0112362]
[1766157551121,0.00016843,89066.0,89020.0,0.0561923]
[1766157551329,0.006,89065.0,89029.0,0.0112372]
[1766157551531,0.00010417,89064.0,89021.0,1.43688]
[1766157551727,0.00010417,89064.0,89030.0,0.12020616]
[1766157552029,0.00016843,89066.0,89018.0,0.00224675]
[1766157552231,0.006,89065.0,88993.0,8.062e-05]
[1766157552440,0.006,89065.0,88921.0,0.0768243]
[1766157552441,8.357e-05,88995.0,88952.0,0.056235]
[1766157552624,7e-08,88995.0,88987.0,0.0112425]
[1766157552934,1.43128,89010.0,88987.0,0.0112425]
[1766157553231,0.006,89009.0,88965.0,0.0112453]
[1766157553440,1.4314,89008.0,88965.0,0.0112453]
[1766157553729,0.00010662,89007.0,88943.0,1.4312]
[1766157553935,0.00016856,88984.0,88927.0,0.00013378]
[1766157554123,1.43760422,88983.0,88935.0,0.0112491]
[1766157554320,1.43760422,88983.0,88928.0,0.01125]
[1766157554530,1.43760422,88983.0,88913.0,0.0112519]
[1766157554531,0.0112437,88979.0,88913.0,0.0112519]
[1766157554727,0.82958648,88960.0,88898.0,0.00224978]
[1766157554935,0.82958648,88980.0,88924.0,0.0112506]
[1766157555230,0.006,88990.0,88971.0,0.0112445]
[1766157555432,0.82958648,89020.0,88961.0,0.00484]
[1766157555629,0.0112361,89039.0,88973.0,0.0112443]
[1766157555833,0.0112366,89035.0,88974.0,0.0112441]
[1766157556033,1.43456,89034.0,88981.0,0.0112433]
[1766157556334,0.00016856,89016.0,88999.0,0.00016856]
[1766157556545,0.00617705,89015.0,88963.0,0.0112456]
[1766157556833,8.479e-05,89014.0,88962.0,0.0562287]
[1766157557033,8.479e-05,89014.0,88963.0,0.00248]
[1766157557234,0.00604,89015.0,88979.0,0.0112436]
[1766157557436,0.00221981,89014.0,88971.0,0.0112445]
[1766157557628,0.00016856,89001.0,88963.0,0.0562282]
[1766157557832,0.00099999,89070.0,88959.0,0.004]
[1766157557833,0.82958648,89060.0,88959.0,0.004]
[1766157558029,1.43236,89059.0,89013.0,0.0112392]
[1766157558226,0.82958648,89050.0,88992.0,0.0112419]
[1766157558434,0.0112355,89044.0,88993.0,0.00252]
[1766157558627,9.305e-05,89043.0,88993.0,0.00252]
[1766157558832,0.00016853,89027.0,89009.0,0.00016853]
[1766157559031,8.691e-05,89026.0,89009.0,0.00016853]
[1766157559434,0.0112387,89019.0,88971.0,0.0112446]
[1766157559730,8.691e-05,89026.0,88979.0,0.0112435]
[1766157559731,0.00014536,89018.0,88979.0,0.0112435]
[1766157559932,0.00604,89017.0,88968.0,0.00604]
[1766157560134,0.00604,89017.0,88983.0,0.011243]
[1766157560331,0.00016853,89009.0,88976.0,0.011244]
[1766157560538,0.00016853,89001.0,88968.0,0.0112449]
[1766157560743,0.0112417,88995.0,88950.0,0.0112472]
[1766157560947,0.0112417,88995.0,88897.0,0.0562696]
[1766157560948,0.00016853,88981.0,88944.0,0.011248]
[1766157561132,0.00604,88980.0,88944.0,0.011248]
[1766157561437,0.00612473,88980.0,88931.0,0.0112496]
[1766157561638,0.00016863,88964.0,88889.0,0.0112549]
[1766157561839,0.00016863,88964.0,88911.0,0.0112522]
[1766157561840,0.0112467,88955.0,88911.0,0.0112522]
[1766157562043,0.0112482,88943.0,88872.0,0.0562853]
[1766157562235,0.0112485,88941.0,88888.0,0.00604]
[1766157562437,0.0112491,88936.0,88893.0,0.0112545]
[1766157562644,0.00016863,88926.0,88874.0,1.43308]
[1766157562839,0.00016863,88926.0,88908.0,0.0112525]
[1766157563037,0.0112445,88973.0,88905.0,0.0562648]
[1766157563237,0.0112461,88960.0,88917.0,0.0112514]
[1766157563544,1.43564,88959.0,88899.0,0.0112537]
[1766157563746,0.0112479,88945.0,88904.0,0.011253]
[1766157563946,0.01125,88929.0,88890.0,0.003]
[1766157564130,0.00016863,88933.0,88890.0,0.003]
[1766157564131,9.007e-05,88928.0,88890.0,0.003]
[1766157564331,0.82958648,88980.0,88907.0,0.0112527]
[1766157564544,1.4394,88979.0,88908.0,1.43436]
[1766157564738,0.0112439,88977.0,88912.0,0.0562605]
[1766157564943,0.011247,88953.0,88914.0,0.0112518]
[1766157565254,0.00616457,88952.0,88928.0,0.01125]
[1766157565452,3e-08,88942.0,88904.0,0.00604]
[1766157565642,3e-08,88942.0,88926.0,0.0112503]
[1766157565843,0.0112495,88933.0,88901.0,0.0112534]
[1766157566055,0.0112488,88939.0,88905.0,0.0112529]
[1766157566353,0.00250913,88941.0,88898.0,0.00224978]
[1766157566555,0.0112544,88895.0,88863.0,0.0112582]
[1766157566739,0.0112544,88895.0,88813.0,0.0112645]
[1766157566740,0.0050992,88894.0,88849.0,0.01126]
[1766157567054,0.0050992,88894.0,88768.0,8.12392]
[1766157567055,0.0562904,88865.0,88805.0,0.0112656]
[1766157567255,0.0562923,88862.0,88792.0,0.0112672]
[1766157567454,0.0112621,88833.0,88783.0,0.00252]
[1766157567751,0.00016886,88817.0,88799.0,0.00016886]
[1766157567944,1.4398,88832.0,88744.0,0.00011516]
[1766157567945,0.00252,88816.0,88744.0,0.00011516]
[1766157568144,0.0563343,88796.0,88744.0,0.00011516]
[1766157568346,5e-08,88753.0,88745.0,0.0112733]
[1766157568541,5e-08,88753.0,88744.0,0.00011516]
[1766157568752,1.43404,88803.0,88753.0,0.0112722]
[1766157568954,0.0112712,88762.0,88708.0,0.0112779]
[1766157569152,0.00016898,88744.0,88700.0,0.01456159]
[1766157569453,0.011275,88732.0,88680.0,0.0112814]
[1766157569752,7e-08,88715.0,88691.0,0.0564005]
[1766157569959,0.0563419,88784.0,88691.0,0.0564005]
[1766157569960,0.0026,88732.0,88695.0,0.0563979]
[1766157570157,0.00028,88731.0,88689.0,0.0112804]
[1766157570542,0.0563525,88768.0,88678.0,1.43452]
[1766157570543,0.0563417,88785.0,88718.0,0.0112766]
[1766157570747,0.00016907,88760.0,88712.0,0.0563874]
[1766157570944,0.00010308,88759.0,88693.0,0.0563991]
[1766157571246,0.011273,88748.0,88698.0,0.0112792]
[1766157571443,0.0112732,88746.0,88693.0,0.00608]
[1766157571643,0.0112741,88739.0,88693.0,0.00608]
[1766157571859,9.434e-05,88738.0,88722.0,0.0112762]
[1766157572051,1.43508,88784.0,88743.0,0.0112734]
[1766157572252,1.43508,88783.0,88743.0,0.0112734]
[1766157572445,0.82958648,88810.0,88739.0,0.0056]
[1766157572446,0.00608,88797.0,88761.0,0.0112711]
[1766157572752,0.00212,88803.0,88753.0,0.00392]
[1766157572957,0.00016897,88786.0,88769.0,0.00016897]
[1766157573153,0.00012505,88801.0,88769.0,0.00016897]
[1766157573558,1.4356,88836.0,88792.0,0.0112673]
[1766157573760,0.0112629,88827.0,88793.0,0.0026]
[1766157573964,1.44176,88835.0,88789.0,0.0012]
[1766157574156,1.4530219,88835.0,88789.0,0.0124676]
[1766157574353,0.056291,88864.0,88803.0,0.00016887]
[1766157574560,1.44184,88863.0,88801.0,0.011266]
[1766157574753,0.0112628,88828.0,88786.0,0.011268]
[1766157575056,1.4981327,88862.0,88790.0,0.0112675]
[1766157575057,6.611e-05,88827.0,88790.0,0.0112675]
[1766157575357,0.00016887,88817.0,88800.0,0.00016887]
[1766157575657,0.0112643,88816.0,88779.0,1.43584]
[1766157575858,0.00136,88820.0,88780.0,0.00608]
[1766157576261,0.0112639,88819.0,88780.0,0.0173488]
[1766157576460,0.0112639,88819.0,88780.0,0.00608]
[1766157576665,0.00016887,88808.0,88791.0,0.00016887]
[1766157576867,6.611e-05,88807.0,88791.0,0.00016887]
[1766157577055,6.611e-05,88807.0,88763.0,0.0112709]
[1766157577251,6.611e-05,88807.0,88740.0,0.0563693]
[1766157577459,6.611e-05,88807.0,88750.0,0.23738544]
[1766157577751,0.0112663,88800.0,88755.0,0.0112719]
[1766157577954,0.0112678,88789.0,88751.0,0.122057]
[1766157578152,0.0112698,88772.0,88769.0,7e-08]
[1766157578354,6.611e-05,88771.0,88726.0,0.01139355]
[1766157578559,6.611e-05,88771.0,88741.0,0.0112737]
[1766157578753,0.0112684,88784.0,88746.0,0.0112731]
[1766157578959,1.436,88810.0,88726.0,5e-08]
[1766157578960,0.0563551,88763.0,88726.0,5e-08]
[1766157579170,0.0563706,88739.0,88664.0,1.4362]
[1766157579354,0.00016909,88721.0,88637.0,0.06296945]
[1766157579553,0.0563738,88734.0,88681.0,9e-08]
[1766157579554,0.0112809,88685.0,88681.0,9e-08]
[1766157579757,0.00564,88704.0,88645.0,0.00052]
[1766157579961,0.00564,88704.0,88618.0,0.00225689]
[1766157579962,0.0112832,88667.0,88632.0,0.0006]
[1766157580161,0.0563934,88703.0,88632.0,0.0006]
[1766157580162,1.442,88704.0,88632.0,0.0006]
[1766157580364,0.00608,88720.0,88653.0,0.0564249]
[1766157580562,1.4476357,88726.0,88634.0,0.0112874]
[1766157580563,0.01045138,88750.0,88673.0,0.0564116]
[1766157580765,9e-08,88720.0,88711.0,0.0112775]
[1766157580955,0.0112729,88748.0,88704.0,0.0112784]
[1766157581157,0.0112729,88748.0,88674.0,0.34774627]
[1766157581158,0.0112705,88768.0,88705.0,0.00264]
[1766157581470,0.0112718,88757.0,88712.0,0.0112773]
[1766157581670,0.0112733,88745.0,88706.0,1.43924]
[1766157581967,0.00016909,88734.0,88717.0,0.00016909]
[1766157582264,0.0112749,88733.0,88717.0,0.00016909]
[1766157582465,0.00016909,88734.0,88717.0,0.00016909]
[1766157582661,0.00016909,88734.0,88717.0,9e-08]
[1766157583259,0.0563869,88713.0,88675.0,3e-08]
[1766157583465,0.0112806,88688.0,88675.0,3e-08]
[1766157583662,0.0112812,88683.0,88675.0,3e-08]
[1766157583860,0.0112816,88680.0,88635.0,1.43688]
[1766157584065,0.0112816,88680.0,88629.0,0.011288]
[1766157584066,0.0112784,88705.0,88636.0,0.00612]
[1766157584266,0.0563622,88752.0,88636.0,0.00612]
[1766157584267,0.0026,88752.0,88676.0,0.05641]
[1766157584462,0.0112727,88750.0,88681.0,0.056407]
[1766157584668,0.00612,88763.0,88690.0,0.0112802]
[1766157584669,0.0112745,88736.0,88690.0,0.0112802]
[1766157584863,0.0112743,88737.0,88682.0,0.12548848]
[1766157585171,0.00016908,88718.0,88701.0,0.00016908]
[1766157585371,0.00012543,88717.0,88701.0,0.00016908]
[1766157585668,0.0112743,88737.0,88701.0,0.00016908]
[1766157585868,0.0112758,88725.0,88701.0,0.00016908]
[1766157586168,0.7001193,88750.0,88701.0,0.00016908]
[1766157586374,0.0112745,88736.0,88701.0,0.00016908]
[1766157586578,0.00016908,88727.0,88701.0,0.00016908]
[1766157586780,0.0112709,88764.0,88701.0,0.00016908]
[1766157587074,0.0676201,88771.0,88707.0,0.011278]
[1766157587259,0.00264,88778.0,88696.0,0.0563975]
[1766157587462,0.0112719,88756.0,88712.0,0.0112774]
[1766157587667,0.0112703,88769.0,88713.0,0.00612]
[1766157587862,0.00016908,88750.0,88732.0,0.00016908]
[1766157588180,0.00016908,88750.0,88703.0,0.1291275]
[1766157588181,0.0112739,88740.0,88703.0,0.1291275]
[1766157588378,0.005,88749.0,88690.0,0.0112802]
[1766157588564,0.005,88749.0,88650.0,0.7001193]
[1766157588874,0.0112816,88680.0,88638.0,0.0112867]
[1766157589077,0.00016908,88678.0,88618.0,0.00225689]
[1766157589373,0.70035749,88670.0,88618.0,0.00225689]
[1766157589572,0.0112883,88627.0,88556.0,1.4940468]
[1766157589773,0.0564185,88664.0,88556.0,1.4940468]
[1766157589774,0.00264,88628.0,88579.0,0.0564718]
[1766157589972,0.0006,88671.0,88608.0,0.0564532]
[1766157590163,0.70035749,88710.0,88642.0,0.0564316]
[1766157590362,0.00012,88709.0,88647.0,0.0112857]
[1766157590565,0.0112795,88696.0,88650.0,0.0112852]
[1766157590767,0.00264,88702.0,88643.0,0.00612]
[1766157590972,0.00264,88702.0,88658.0,0.0112842]
[1766157591173,0.00264,88702.0,88643.0,0.00612]
[1766157591376,0.0112789,88701.0,88665.0,0.0112834]
[1766157591583,0.0112803,88690.0,88664.0,0.00016918]
[1766157591875,0.0112803,88690.0,88622.0,0.0112888]
[1766157591876,0.70035749,88700.0,88625.0,1.43792]
[1766157592076,0.70035749,88690.0,88632.0,0.0112875]
[1766157592268,0.0112807,88687.0,88644.0,0.011286]
[1766157592471,0.70035749,88730.0,88645.0,1.43796]
[1766157592677,1.47302653,88729.0,88664.0,0.0112835]
[1766157592873,0.0112806,88688.0,88646.0,0.0112858]
[1766157593075,0.00612,88700.0,88658.0,0.00016918]
[1766157593668,0.0112826,88672.0,88658.0,0.00016918]
[1766157593868,0.0112825,88673.0,88621.0,1.43812]
[1766157594175,0.0112782,88707.0,88667.0,0.0112832]
[1766157594373,0.0112787,88702.0,88663.0,0.00264]
[1766157594687,0.0112786,88703.0,88661.0,0.0112839]
[1766157594878,0.00016918,88691.0,88673.0,0.00016918]
[1766157595378,0.00016918,88691.0,88631.0,0.0112876]
[1766157595579,0.0112807,88687.0,88629.0,0.00264]
[1766157595775,0.02919712,88686.0,88634.0,0.0112873]
[1766157596081,0.02919712,88685.0,88629.0,0.00264]
[1766157596382,0.0112834,88666.0,88629.0,0.00264]
[1766157596565,0.0112834,88666.0,88639.0,8e-08]
[1766157596566,0.00016918,88656.0,88639.0,8e-08]
[1766157596773,0.011284,88661.0,88599.0,1.43836]
[1766157597078,0.0112844,88658.0,88623.0,0.0112887]
[1766157597266,0.05928438,88679.0,88625.0,0.0564426]
[1766157597466,0.05928438,88705.0,88647.0,0.0564285]
[1766157597673,0.00016918,88685.0,88667.0,0.00016918]
[1766157598194,0.05928438,88712.0,88667.0,0.00016918]
[1766157598477,0.05928438,88712.0,88650.0,0.70035749]
[1766157598478,0.0112785,88704.0,88668.0,0.0012]
[1766157598680,0.011276,88724.0,88690.0,0.0112802]
[1766157598880,0.0112773,88714.0,88683.0,0.00524]
[1766157599077,0.06316438,88733.0,88672.0,0.0564128]
[1766157599268,8e-08,88703.0,88686.0,0.0112807]
[1766157599473,8e-08,88703.0,88685.0,0.00016918]
[1766157599668,8e-08,88703.0,88685.0,8e-08]
[1766157599885,8e-08,88703.0,88672.0,0.0112825]
[1766157600178,0.00492,88709.0,88661.0,0.00524]
[1766157600382,0.04057542,88708.0,88657.0,0.00612]
[1766157600581,0.0112809,88686.0,88658.0,0.00612]
[1766157600771,0.05928438,88714.0,88663.0,0.00016918]
[1766157600977,0.02929206,88713.0,88695.0,0.0112795]
[1766157601288,0.02929206,88713.0,88664.0,0.00612]
[1766157601289,0.13915779,88765.0,88727.0,0.0112755]
[1766157601469,0.0563342,88796.0,88696.0,0.29103337]
[1766157601470,0.08980318,88852.0,88753.0,0.056361]
[1766157601667,0.0112625,88831.0,88770.0,0.70035749]
[1766157601878,0.0112625,88831.0,88788.0,0.0112677]
[1766157602085,0.00016899,88809.0,88792.0,0.00016899]
[1766157602377,0.00016888,88809.0,88792.0,0.00016888]
[1766157602780,1.43856,88847.0,88800.0,0.0112663]
[1766157602781,0.0112607,88844.0,88800.0,0.0112663]
[1766157602974,0.00612,88843.0,88800.0,0.0112663]
[1766157603174,0.00612,88843.0,88805.0,0.0112655]
[1766157603373,0.00612,88843.0,88810.0,0.0112649]
[1766157603579,0.0562721,88894.0,88820.0,0.0112636]
[1766157603884,0.00016888,88866.0,88848.0,8e-08]
[1766157604177,0.0562947,88859.0,88802.0,0.12912043]
[1766157604378,0.70035749,88840.0,88802.0,0.12912043]
[1766157604585,0.00612,88839.0,88781.0,0.00612]
[1766157604782,0.0112634,88823.0,88781.0,0.00612]
[1766157604979,0.0112626,88830.0,88781.0,0.00612]
[1766157605182,0.00612,88839.0,88781.0,0.00612]
[1766157605483,0.00016888,88814.0,88797.0,0.00016888]
[1766157605776,0.00016888,88814.0,88762.0,0.0112711]
[1766157605978,0.00016888,88814.0,88761.0,1.43804]
[1766157606182,0.056328,88806.0,88745.0,0.02927603]
[1766157606383,0.0563246,88811.0,88729.0,1.438]
[1766157606384,0.0563324,88799.0,88729.0,1.4492752]
[1766157606681,0.0112651,88810.0,88716.0,0.00612]
[1766157606682,0.70035749,88780.0,88716.0,0.00612]
[1766157606889,8e-08,88757.0,88739.0,0.00016898]
[1766157607079,0.0112689,88779.0,88737.0,0.0112742]
[1766157607280,0.70035749,88790.0,88732.0,0.0112749]
[1766157607281,0.0112694,88776.0,88732.0,0.0112749]
[1766157607576,0.0112694,88776.0,88702.0,0.05855206]
[1766157607577,0.0112726,88751.0,88719.0,0.11744237]
[1766157607777,0.00536341,88750.0,88705.0,0.02927603]
[1766157608086,0.00016898,88736.0,88719.0,0.00016898]
[1766157608281,8.787e-05,88735.0,88719.0,0.00016898]
[1766157608476,0.00016898,88736.0,88719.0,0.00016898]
[1766157608972,1.35460218,88765.0,88719.0,0.00016898]
[1766157609172,0.00612,88764.0,88719.0,0.00016898]
[1766157609371,0.0112738,88741.0,88719.0,0.00016898]
[1766157609570,0.00524,88740.0,88700.0,9.667e-05]
[1766157609779,0.0112756,88727.0,88700.0,9.667e-05]
[1766157609986,0.00524,88740.0,88700.0,9.667e-05]
[1766157610181,1.5,88776.0,88701.0,0.23531651]
[1766157610182,0.0112722,88754.0,88701.0,0.23531651]
[1766157610482,1.5,88776.0,88700.0,9.667e-05]
[1766157610690,0.00612,88775.0,88737.0,0.0112743]
[1766157610876,0.70035749,88770.0,88717.0,0.0112767]
[1766157611073,0.0112718,88757.0,88716.0,0.0112769]
[1766157611277,1.43792,88763.0,88700.0,0.01137557]
[1766157611473,0.0563605,88755.0,88700.0,9.667e-05]
[1766157611678,1.43792,88763.0,88719.0,8e-08]
[1766157611679,0.011276,88724.0,88719.0,8e-08]
[1766157611879,0.00612,88723.0,88671.0,0.0112826]
[1766157612173,0.00612,88723.0,88654.0,0.0112848]
[1766157612174,0.0112769,88717.0,88654.0,0.0112848]
[1766157612381,0.0112769,88717.0,88626.0,0.0564422]
[1766157612382,0.0112775,88712.0,88643.0,0.0564312]
[1766157612580,0.00612,88723.0,88655.0,0.0564231]
[1766157612779,0.00016909,88698.0,88683.0,0.0112811]
[1766157612978,9.667e-05,88697.0,88683.0,0.0112811]
[1766157613176,0.00012,88727.0,88692.0,0.0112799]
[1766157613378,0.9,88769.0,88710.0,0.0112776]
[1766157613688,0.0112719,88757.0,88717.0,0.0112767]
[1766157613881,0.00612,88768.0,88686.0,0.02927603]
[1766157614074,0.00016909,88736.0,88718.0,0.00016909]
[1766157614281,0.00496,88735.0,88718.0,0.00016909]
[1766157614475,0.70035749,88730.0,88672.0,0.02927603]
[1766157614675,0.00496,88735.0,88655.0,0.0112847]
[1766157614676,0.0112798,88694.0,88655.0,0.0112847]
[1766157614877,0.00496,88735.0,88651.0,1.43808]
[1766157615082,0.0563756,88731.0,88663.0,0.0112836]
[1766157615288,0.011275,88732.0,88657.0,0.0112844]
[1766157615289,0.0112797,88695.0,88657.0,0.0112844]
[1766157615588,0.70035749,88710.0,88643.0,0.02927603]
[1766157615589,0.00016909,88685.0,88643.0,0.0112861]
[1766157615791,0.00016909,88685.0,88641.0,0.0564325]
[1766157615985,1.4493961,88723.0,88682.0,0.0112812]
[1766157616288,0.00612,88722.0,88666.0,0.02927603]
[1766157616490,0.00016909,88703.0,88685.0,0.00016909]
[1766157616685,0.00016909,88703.0,88686.0,0.0112807]
[1766157616885,0.00016909,88703.0,88690.0,0.0112802]
[1766157617094,0.00612,88722.0,88704.0,0.0112785]
[1766157617393,0.00612,88722.0,88692.0,0.0112799]
[1766157617587,0.00612,88722.0,88670.0,0.02927603]
[1766157617782,0.00612,88722.0,88665.0,1.46747603]
[1766157618091,0.00612,88722.0,88686.0,0.00016909]
[1766157618092,0.00016909,88703.0,88686.0,0.00016909]
[1766157619192,0.0112788,88702.0,88686.0,0.00016909]
[1766157619393,0.0112802,88691.0,88656.0,0.0112845]
[1766157619597,0.70035749,88700.0,88638.0,0.02927603]
[1766157619887,0.70035749,88700.0,88612.0,0.0962808]
[1766157619888,0.0112825,88673.0,88620.0,0.03539603]
[1766157620092,0.011283,88669.0,88632.0,0.0112876]
[1766157620294,0.011283,88669.0,88612.0,0.03903471]
[1766157620295,0.0112827,88671.0,88613.0,0.01129]
[1766157620496,0.0112827,88671.0,88601.0,1.43832]
[1766157620497,0.00016918,88659.0,88643.0,0.0112861]
[1766157620711,0.0112807,88687.0,88642.0,8e-08]
[1766157620990,0.00612,88686.0,88654.0,0.0112848]
[1766157621179,0.00612,88686.0,88658.0,0.0112843]
[1766157621382,0.0112768,88718.0,88655.0,0.12131184]
[1766157621585,0.0026,88717.0,88666.0,0.0112832]
[1766157621785,0.0112708,88765.0,88666.0,0.0112832]
[1766157621786,1.43848,88767.0,88691.0,0.0564005]
[1766157621993,0.011273,88748.0,88695.0,0.0112795]
[1766157622196,0.0112736,88743.0,88705.0,0.0112783]
[1766157622496,0.0112736,88743.0,88695.0,1.43848]
[1766157622497,0.00264,88742.0,88695.0,1.43848]
[1766157622694,0.00016909,88727.0,88710.0,0.00016909]
[1766157622993,0.00264,88742.0,88716.0,0.02927603]
[1766157623199,0.0139137,88742.0,88710.0,0.00016909]
[1766157623396,0.00264,88742.0,88713.0,0.02927603]
[1766157623597,0.00264,88742.0,88715.0,0.02927603]
[1766157623898,0.00016909,88737.0,88717.0,0.02927603]
[1766157624085,0.00016909,88737.0,88710.0,0.00016909]
[1766157624289,0.00016909,88737.0,88713.0,0.02927603]
[1766157624590,0.00016909,88737.0,88701.0,0.05855206]
[1766157624591,0.00016909,88737.0,88699.0,0.03903471]
[1766157624898,0.0112762,88722.0,88691.0,0.03903471]
[1766157625194,0.00612,88721.0,88692.0,0.04688785]
[1766157625409,1.43848,88739.0,88693.0,0.03560795]
[1766157625586,0.0112744,88736.0,88702.0,0.03903471]
[1766157625785,0.00284,88738.0,88705.0,0.00016909]
[1766157625786,0.00016909,88723.0,88705.0,0.00016909]
[1766157626591,0.00284,88738.0,88710.0,0.0112777]
[1766157627001,0.00284,88738.0,88705.0,0.00016909]
[1766157627199,0.00284,88738.0,88706.0,0.03560135]
[1766157627498,0.011275,88732.0,88705.0,0.00016909]
[1766157627695,0.00016909,88727.0,88688.0,0.03903471]
[1766157627890,0.0563926,88704.0,88668.0,1e-08]
[1766157628089,0.0173587,88703.0,88634.0,0.05855206]
[1766157628394,0.0173587,88703.0,88630.0,0.01143109]
[1766157628395,0.00608,88703.0,88652.0,0.05855206]
[1766157628579,0.0112788,88702.0,88653.0,1.50307206]
[1766157628785,0.00608,88703.0,88669.0,0.00016909]
[1766157628991,0.0173586,88703.0,88669.0,0.00016909]
[1766157629196,0.00608,88703.0,88681.0,0.0112814]
[1766157629394,0.00608,88703.0,88675.0,0.0112821]
[1766157629594,0.0173587,88703.0,88670.0,0.0112828]
[1766157629795,0.0112798,88694.0,88669.0,0.00016909]
[1766157630092,0.00016909,88695.0,88675.0,0.0112821]
[1766157630289,0.00016909,88695.0,88676.0,0.011282]
[1766157630495,0.00016909,88695.0,88669.0,0.00016909]
[1766157630694,0.00016909,88695.0,88683.0,0.0112811]
[1766157630994,9e-08,88695.0,88669.0,0.00016909]
[1766157631403,9e-08,88695.0,88689.0,0.0112803]
[1766157631699,0.0112758,88726.0,88691.0,0.01128]
[1766157631889,0.00516,88729.0,88689.0,0.0112803]
[1766157632090,0.00516,88729.0,88686.0,0.0112807]
[1766157632297,0.0112766,88719.0,88682.0,0.0112811]
[1766157632603,0.00016909,88709.0,88692.0,0.00016909]
[1766157633284,0.00516,88729.0,88692.0,0.00016909]
[1766157633502,0.0112757,88726.0,88692.0,9e-08]
[1766157633693,0.0112758,88725.0,88692.0,9e-08]
[1766157633894,0.0112786,88703.0,88692.0,9e-08]
[1766157634092,0.00516,88729.0,88692.0,9e-08]
[1766157634699,0.00016909,88719.0,88693.0,0.0112798]
[1766157634996,0.00016909,88719.0,88692.0,9e-08]
[1766157634997,9e-08,88719.0,88711.0,0.0112775]
[1766157635201,9e-08,88719.0,88701.0,0.0112788]
[1766157635397,9e-08,88719.0,88692.0,9e-08]
[1766157635711,9e-08,88719.0,88692.0,5e-08]
[1766157635900,9e-08,88719.0,88652.0,0.07889623]
[1766157635901,0.0563959,88699.0,88652.0,0.07889623]
[1766157636086,1.44468,88698.0,88613.0,0.0962808]
[1766157636290,0.0112829,88670.0,88630.0,0.01143109]
[1766157636487,0.00256,88669.0,88630.0,0.00014329]
[1766157636790,0.00010831,88658.0,88641.0,0.0001692]
[1766157636990,0.00256,88669.0,88641.0,0.0001692]
[1766157637186,0.00116,88671.0,88641.0,0.0001692]
[1766157637401,0.00116,88670.0,88630.0,0.00014329]
[1766157637597,0.011283,88669.0,88630.0,0.00014329]
[1766157637806,0.0112836,88664.0,88630.0,0.00014329]